[Event "Late-Titled-Tuesday-Blitz-April-30-2024"]
[Site "Chess.com"]
[Date "2024.04.30"]
[Round "7"]
[White "cristiano78"]
[Black "martinmena"]
[Result "1-0"]
[WhiteElo "2276"]
[BlackElo "2116"]
[TimeControl "180+1"]
[EndTime "15:16:58 PDT"]
[Termination "cristiano78 won on time"]

1. d4 {[%clk 0:03:00]} 1... d5 {[%clk 0:02:59.8]} 2. c4 {[%clk 0:02:59.3]} 2...
e6 {[%clk 0:02:59.2]} 3. Nf3 {[%clk 0:02:59.4]} 3... Nf6 {[%clk 0:02:58.7]} 4.
Nc3 {[%clk 0:02:59.8]} 4... Be7 {[%clk 0:02:58.1]} 5. Bg5 {[%clk 0:02:59.5]}
5... Nbd7 {[%clk 0:02:56.4]} 6. e3 {[%clk 0:02:59.7]} 6... O-O {[%clk 0:02:56]}
7. Rc1 {[%clk 0:02:59.8]} 7... c5 {[%clk 0:02:55.2]} 8. dxc5 {[%clk 0:02:59.6]}
8... Nxc5 {[%clk 0:02:50.5]} 9. cxd5 {[%clk 0:02:59.7]} 9... Nxd5 {[%clk
0:02:50.3]} 10. Nxd5 {[%clk 0:02:58.1]} 10... Bxg5 {[%clk 0:02:46.2]} 11. Rxc5
{[%clk 0:02:56.4]} 11... exd5 {[%clk 0:02:41.1]} 12. Rxd5 {[%clk 0:02:56.3]}
12... Bf6 {[%clk 0:01:56.4]} 13. Rxd8 {[%clk 0:02:54.6]} 13... Rxd8 {[%clk
0:01:57.3]} 14. Qb3 {[%clk 0:02:52.9]} 14... Be6 {[%clk 0:01:55.9]} 15. Qa3
{[%clk 0:02:44.7]} 15... Rac8 {[%clk 0:01:48.6]} 16. Nd4 {[%clk 0:02:00.1]}
16... Bxd4 {[%clk 0:01:41.6]} 17. exd4 {[%clk 0:01:59.9]} 17... Rxd4 {[%clk
0:01:42.1]} 18. f3 {[%clk 0:01:47.5]} 18... Rc2 {[%clk 0:00:43.7]} 19. Qxa7
{[%clk 0:01:41.3]} 19... Rd5 {[%clk 0:00:10.2]} 20. Qxb7 {[%clk 0:01:32.2]}
20... g6 {[%clk 0:00:06.3]} 21. Rg1 {[%clk 0:01:17.7]} 21... Rdd2 {[%clk
0:00:04.6]} 22. Qb8+ {[%clk 0:01:11]} 22... Kg7 {[%clk 0:00:04.3]} 23. Qe5+
{[%clk 0:01:10.8]} 23... Kg8 {[%clk 0:00:04.2]} 24. Qe3 {[%clk 0:01:01.3]} 24...
Rd5 {[%clk 0:00:02.5]} 25. Bd3 {[%clk 0:00:58.1]} 25... Rxb2 {[%clk 0:00:02.5]}
26. Be4 {[%clk 0:00:53.3]} 26... Re5 {[%clk 0:00:02.2]} 27. Qc3 {[%clk
0:00:49.7]} 27... Reb5 {[%clk 0:00:02.4]} 28. Rf1 {[%clk 0:00:44.7]} 28... Bxa2
{[%clk 0:00:01.3]} 29. Rf2 {[%clk 0:00:43.3]} 29... Bd5 {[%clk 0:00:01.2]} 30.
Rxb2 {[%clk 0:00:42.9]} 30... Rxb2 {[%clk 0:00:01.7]} 31. Qxb2 {[%clk
0:00:42.4]} 31... Bxe4 {[%clk 0:00:02.6]} 32. fxe4 {[%clk 0:00:42.7]} 1-0

[Event "Late-Titled-Tuesday-Blitz-April-30-2024"]
[Site "Chess.com"]
[Date "2024.04.30"]
[Round "7"]
[White "jcmesafischer"]
[Black "HipsterChess22"]
[Result "0-1"]
[WhiteElo "2316"]
[BlackElo "2192"]
[TimeControl "180+1"]
[EndTime "15:17:00 PDT"]
[Termination "HipsterChess22 won by resignation"]

1. e4 {[%clk 0:03:00.9]} 1... c6 {[%clk 0:02:59.9]} 2. Nc3 {[%clk 0:03:00.7]}
2... d5 {[%clk 0:03:00.8]} 3. Nf3 {[%clk 0:03:01.3]} 3... dxe4 {[%clk
0:03:00.7]} 4. Nxe4 {[%clk 0:03:02.2]} 4... Nf6 {[%clk 0:03:00.6]} 5. Qe2 {[%clk
0:03:01.5]} 5... Nxe4 {[%clk 0:03:00]} 6. Qxe4 {[%clk 0:03:02.4]} 6... Nd7
{[%clk 0:03:00.4]} 7. Bc4 {[%clk 0:03:01.9]} 7... Nf6 {[%clk 0:03:00.6]} 8. Ne5
{[%clk 0:03:02.6]} 8... e6 {[%clk 0:03:00.9]} 9. Qe2 {[%clk 0:03:03.1]} 9... b5
{[%clk 0:03:01.1]} 10. Bd3 {[%clk 0:03:01.1]} 10... Qc7 {[%clk 0:02:59.7]} 11.
c3 {[%clk 0:02:56.4]} 11... Bd6 {[%clk 0:02:52.8]} 12. Nxc6 {[%clk 0:02:55]}
12... a6 {[%clk 0:02:45.6]} 13. Nd4 {[%clk 0:02:53.7]} 13... O-O {[%clk
0:02:38.3]} 14. h3 {[%clk 0:02:33.8]} 14... e5 {[%clk 0:02:30.9]} 15. Nb3 {[%clk
0:02:21.9]} 15... e4 {[%clk 0:02:26.3]} 16. Bc2 {[%clk 0:02:21.6]} 16... Bb7
{[%clk 0:02:20.9]} 17. O-O {[%clk 0:02:17.2]} 17... Bd5 {[%clk 0:02:12.2]} 18.
Re1 {[%clk 0:02:03.4]} 18... Rfe8 {[%clk 0:02:11.2]} 19. a4 {[%clk 0:01:51.2]}
19... b4 {[%clk 0:01:45.8]} 20. Nd4 {[%clk 0:01:37.4]} 20... Bc4 {[%clk
0:01:40.1]} 21. Qd1 {[%clk 0:01:24]} 21... Bc5 {[%clk 0:01:32.6]} 22. b3 {[%clk
0:01:17.3]} 22... Bxd4 {[%clk 0:01:22.4]} 23. cxd4 {[%clk 0:01:13.2]} 23... Bd3
{[%clk 0:01:11.8]} 24. Bb1 {[%clk 0:00:46.3]} 24... Nd5 {[%clk 0:01:04.2]} 25.
Bb2 {[%clk 0:00:29.6]} 25... Nf4 {[%clk 0:00:55.2]} 26. d5 {[%clk 0:00:25.6]}
26... Nxd5 {[%clk 0:00:50.8]} 27. Bxd3 {[%clk 0:00:25]} 27... exd3 {[%clk
0:00:50.6]} 28. Qf3 {[%clk 0:00:24.6]} 28... Qc2 {[%clk 0:00:38.5]} 29. Bxg7
{[%clk 0:00:11.8]} 29... Kxg7 {[%clk 0:00:30.4]} 30. Qxd5 {[%clk 0:00:11.4]}
30... Qxd2 {[%clk 0:00:27.8]} 31. Qg5+ {[%clk 0:00:11.4]} 31... Qxg5 {[%clk
0:00:27.2]} 0-1

[Event "Late-Titled-Tuesday-Blitz-April-30-2024"]
[Site "Chess.com"]
[Date "2024.04.30"]
[Round "7"]
[White "guillembaches"]
[Black "Kostukov_Alex"]
[Result "1-0"]
[WhiteElo "2567"]
[BlackElo "2375"]
[TimeControl "180+1"]
[EndTime "15:17:04 PDT"]
[Termination "guillembaches won by resignation"]

1. d4 {[%clk 0:03:00.9]} 1... g6 {[%clk 0:02:55.7]} 2. Nf3 {[%clk 0:03:01.4]}
2... Bg7 {[%clk 0:02:55.1]} 3. c3 {[%clk 0:03:01.4]} 3... d6 {[%clk 0:02:52.8]}
4. e4 {[%clk 0:03:01.5]} 4... e5 {[%clk 0:02:52.3]} 5. Bd3 {[%clk 0:02:56.4]}
5... Nc6 {[%clk 0:02:48.4]} 6. dxe5 {[%clk 0:02:53.9]} 6... dxe5 {[%clk
0:02:40.1]} 7. O-O {[%clk 0:02:50.1]} 7... Qe7 {[%clk 0:02:36.7]} 8. Bg5 {[%clk
0:02:45.9]} 8... Nf6 {[%clk 0:02:36.7]} 9. Nbd2 {[%clk 0:02:44.8]} 9... h6
{[%clk 0:02:36.7]} 10. Bh4 {[%clk 0:02:43.4]} 10... O-O {[%clk 0:02:30.3]} 11.
Re1 {[%clk 0:02:42.3]} 11... Rd8 {[%clk 0:02:16.3]} 12. Qc2 {[%clk 0:02:41.4]}
12... g5 {[%clk 0:02:11.9]} 13. Bg3 {[%clk 0:02:41.5]} 13... Nh5 {[%clk
0:02:11.8]} 14. a4 {[%clk 0:02:37.2]} 14... Nf4 {[%clk 0:02:08.7]} 15. Bf1
{[%clk 0:02:36.2]} 15... Be6 {[%clk 0:02:04]} 16. Nc4 {[%clk 0:02:35]} 16... Qf6
{[%clk 0:01:59.9]} 17. b4 {[%clk 0:02:29.7]} 17... Bxc4 {[%clk 0:00:53.4]} 18.
Bxc4 {[%clk 0:02:29.3]} 18... Rd6 {[%clk 0:00:43.4]} 19. a5 {[%clk 0:02:21.8]}
19... a6 {[%clk 0:00:40.3]} 20. Rad1 {[%clk 0:02:08.8]} 20... Rad8 {[%clk
0:00:39.2]} 21. Bf1 {[%clk 0:01:56.2]} 21... Qe7 {[%clk 0:00:34.9]} 22. Nd2
{[%clk 0:01:49.6]} 22... Nd3 {[%clk 0:00:28]} 23. Bxd3 {[%clk 0:01:48.9]} 23...
Rxd3 {[%clk 0:00:27.1]} 24. Nc4 {[%clk 0:01:48.5]} 24... Rxd1 {[%clk 0:00:22.9]}
25. Rxd1 {[%clk 0:01:48.3]} 25... Rxd1+ {[%clk 0:00:18.5]} 26. Qxd1 {[%clk
0:01:49.2]} 26... Qe6 {[%clk 0:00:18.8]} 27. Qd5 {[%clk 0:01:42.9]} 27... Bf6
{[%clk 0:00:12.1]} 28. Qxe6 {[%clk 0:01:38.9]} 28... fxe6 {[%clk 0:00:13]} 29.
f3 {[%clk 0:01:38]} 29... Kf7 {[%clk 0:00:13.4]} 30. Bf2 {[%clk 0:01:37.4]}
30... Ke7 {[%clk 0:00:13.8]} 31. Bc5+ {[%clk 0:01:37.2]} 31... Kd7 {[%clk
0:00:14]} 32. Kf2 {[%clk 0:01:36.3]} 32... h5 {[%clk 0:00:14.1]} 33. Ke2 {[%clk
0:01:36.2]} 33... Be7 {[%clk 0:00:13]} 34. Bf2 {[%clk 0:01:32.8]} 34... Bf6
{[%clk 0:00:11.1]} 35. Kd3 {[%clk 0:01:32.9]} 35... Be7 {[%clk 0:00:10.8]} 36.
Be1 {[%clk 0:01:32.7]} 36... Bf6 {[%clk 0:00:11.2]} 37. h3 {[%clk 0:01:32.5]}
37... h4 {[%clk 0:00:09.9]} 38. Bd2 {[%clk 0:01:30.9]} 38... Be7 {[%clk
0:00:10.1]} 39. Ne3 {[%clk 0:01:30.7]} 39... Bf6 {[%clk 0:00:10.2]} 40. Ng4
{[%clk 0:01:30.8]} 40... Be7 {[%clk 0:00:10.7]} 41. Kc4 {[%clk 0:01:29.1]} 41...
Kd6 {[%clk 0:00:09.8]} 42. Kb3 {[%clk 0:01:28.4]} 42... Kd7 {[%clk 0:00:09]} 43.
c4 {[%clk 0:01:27.8]} 43... Nd4+ {[%clk 0:00:06]} 44. Kc3 {[%clk 0:01:22.4]}
44... b6 {[%clk 0:00:06.1]} 45. Nxe5+ {[%clk 0:01:18.5]} 45... Kd6 {[%clk
0:00:04.6]} 46. Nf7+ {[%clk 0:01:12.8]} 46... Kd7 {[%clk 0:00:04.3]} 47. Kxd4
{[%clk 0:01:13]} 1-0

[Event "Late-Titled-Tuesday-Blitz-April-30-2024"]
[Site "Chess.com"]
[Date "2024.04.30"]
[Round "7"]
[White "GolfBeforeChess"]
[Black "balack95"]
[Result "1-0"]
[WhiteElo "2333"]
[BlackElo "2495"]
[TimeControl "180+1"]
[EndTime "15:17:05 PDT"]
[Termination "GolfBeforeChess won by resignation"]

1. Nf3 {[%clk 0:03:00.9]} 1... b6 {[%clk 0:02:58.8]} 2. e4 {[%clk 0:02:59.6]}
2... Bb7 {[%clk 0:02:59.7]} 3. Bd3 {[%clk 0:02:59.7]} 3... Nc6 {[%clk
0:02:58.3]} 4. c3 {[%clk 0:02:58.9]} 4... e5 {[%clk 0:02:58.9]} 5. Qe2 {[%clk
0:02:58.2]} 5... Nf6 {[%clk 0:02:59.4]} 6. O-O {[%clk 0:02:58.8]} 6... Be7
{[%clk 0:02:59.1]} 7. Bc2 {[%clk 0:02:59.4]} 7... O-O {[%clk 0:02:58.2]} 8. d4
{[%clk 0:02:59.7]} 8... d6 {[%clk 0:02:58.8]} 9. Rd1 {[%clk 0:02:55.4]} 9...
exd4 {[%clk 0:02:57.2]} 10. cxd4 {[%clk 0:02:55.4]} 10... Re8 {[%clk 0:02:57.9]}
11. Nc3 {[%clk 0:02:54.5]} 11... Nb4 {[%clk 0:02:57.7]} 12. Bb1 {[%clk 0:02:53]}
12... a5 {[%clk 0:02:58.3]} 13. a3 {[%clk 0:02:51.8]} 13... Ba6 {[%clk
0:02:58.9]} 14. Qe1 {[%clk 0:02:41.8]} 14... Nc6 {[%clk 0:02:57.8]} 15. d5
{[%clk 0:02:29.1]} 15... Ne5 {[%clk 0:02:54.4]} 16. Nxe5 {[%clk 0:02:28.2]}
16... dxe5 {[%clk 0:02:55.3]} 17. f3 {[%clk 0:02:21.1]} 17... Bc5+ {[%clk
0:02:54.7]} 18. Be3 {[%clk 0:02:21.2]} 18... Qd6 {[%clk 0:02:48.8]} 19. Qf2
{[%clk 0:02:15.8]} 19... Bxe3 {[%clk 0:02:43.3]} 20. Qxe3 {[%clk 0:02:16]} 20...
Rad8 {[%clk 0:02:39]} 21. Bd3 {[%clk 0:02:09.2]} 21... Bxd3 {[%clk 0:02:37.4]}
22. Rxd3 {[%clk 0:02:09]} 22... c5 {[%clk 0:02:34]} 23. a4 {[%clk 0:02:05.4]}
23... Nh5 {[%clk 0:02:31.4]} 24. g3 {[%clk 0:02:01.5]} 24... c4 {[%clk
0:02:22.8]} 25. Rd2 {[%clk 0:01:59.2]} 25... Nf6 {[%clk 0:02:04.4]} 26. Nb5
{[%clk 0:01:57.3]} 26... Qb8 {[%clk 0:02:03.5]} 27. d6 {[%clk 0:01:52.4]} 27...
Nd7 {[%clk 0:01:56.2]} 28. Rc1 {[%clk 0:01:49.1]} 28... Nc5 {[%clk 0:01:53.4]}
29. Rxc4 {[%clk 0:01:48.5]} 29... h5 {[%clk 0:01:51.3]} 30. Rd5 {[%clk
0:01:39.8]} 30... h4 {[%clk 0:01:47.6]} 31. Qg5 {[%clk 0:01:31.1]} 31... hxg3
{[%clk 0:01:46.8]} 32. hxg3 {[%clk 0:01:31.5]} 32... Re6 {[%clk 0:01:09.9]} 33.
Kg2 {[%clk 0:01:02]} 33... Nd7 {[%clk 0:01:05.8]} 34. Nc7 {[%clk 0:00:51.8]}
34... Rg6 {[%clk 0:01:05.6]} 35. Qe7 {[%clk 0:00:51.8]} 35... Nc5 {[%clk
0:00:58.2]} 36. Rc1 {[%clk 0:00:38.6]} 36... Nxa4 {[%clk 0:00:52.2]} 37. Rh1
{[%clk 0:00:33.1]} 37... Rf6 {[%clk 0:00:46.2]} 38. Qxe5 {[%clk 0:00:30]} 38...
Rdxd6 {[%clk 0:00:42.7]} 39. Rxd6 {[%clk 0:00:25.9]} 39... Nc5 {[%clk
0:00:30.4]} 40. Rxf6 {[%clk 0:00:21.8]} 40... gxf6 {[%clk 0:00:30.2]} 41. Qxf6
{[%clk 0:00:20.6]} 1-0

[Event "Late-Titled-Tuesday-Blitz-April-30-2024"]
[Site "Chess.com"]
[Date "2024.04.30"]
[Round "7"]
[White "realburq"]
[Black "BabageldiAnnaberdiyev"]
[Result "0-1"]
[WhiteElo "2376"]
[BlackElo "2596"]
[TimeControl "180+1"]
[EndTime "15:17:10 PDT"]
[Termination "BabageldiAnnaberdiyev won by resignation"]

1. d4 {[%clk 0:03:00.9]} 1... Nf6 {[%clk 0:02:58.4]} 2. Nc3 {[%clk 0:03:01.3]}
2... d5 {[%clk 0:02:56.2]} 3. Bg5 {[%clk 0:03:01.2]} 3... e6 {[%clk 0:02:55.7]}
4. e4 {[%clk 0:03:01.2]} 4... Be7 {[%clk 0:02:55.4]} 5. e5 {[%clk 0:03:01.2]}
5... Nfd7 {[%clk 0:02:55.6]} 6. h4 {[%clk 0:03:01.9]} 6... h6 {[%clk 0:02:54.9]}
7. Bxe7 {[%clk 0:02:55.2]} 7... Qxe7 {[%clk 0:02:55.8]} 8. Qd2 {[%clk
0:02:41.4]} 8... a6 {[%clk 0:02:33.8]} 9. f4 {[%clk 0:02:37.2]} 9... c5 {[%clk
0:02:33.3]} 10. Nf3 {[%clk 0:02:37.1]} 10... Nc6 {[%clk 0:02:33.6]} 11. dxc5
{[%clk 0:02:23.4]} 11... Qxc5 {[%clk 0:02:34.5]} 12. O-O-O {[%clk 0:02:22.1]}
12... b5 {[%clk 0:02:33.9]} 13. Kb1 {[%clk 0:02:21.9]} 13... Nb6 {[%clk
0:02:33.6]} 14. Nd4 {[%clk 0:02:06.9]} 14... Nxd4 {[%clk 0:02:32.8]} 15. Qxd4
{[%clk 0:02:06.4]} 15... Qxd4 {[%clk 0:02:33.2]} 16. Rxd4 {[%clk 0:02:05.7]}
16... Bd7 {[%clk 0:02:33.2]} 17. h5 {[%clk 0:01:57.4]} 17... Ke7 {[%clk
0:02:31.1]} 18. Rh3 {[%clk 0:01:53.1]} 18... Rac8 {[%clk 0:02:22.6]} 19. Rg3
{[%clk 0:01:19.3]} 19... Rhg8 {[%clk 0:02:12.3]} 20. Be2 {[%clk 0:01:05.5]}
20... f5 {[%clk 0:02:10.5]} 21. Re3 {[%clk 0:00:57.9]} 21... g5 {[%clk
0:02:05.1]} 22. hxg6 {[%clk 0:00:53]} 22... Rxg6 {[%clk 0:02:04.7]} 23. Rh3
{[%clk 0:00:39.2]} 23... Rxg2 {[%clk 0:01:58.3]} 24. Rxh6 {[%clk 0:00:25]} 24...
Rxc3 {[%clk 0:01:57.7]} 25. bxc3 {[%clk 0:00:25.9]} 25... Rxe2 {[%clk
0:01:56.3]} 26. Rh7+ {[%clk 0:00:26]} 26... Kd8 {[%clk 0:01:55.5]} 27. Rd1
{[%clk 0:00:26]} 27... Rf2 {[%clk 0:01:48]} 28. Rh4 {[%clk 0:00:24.8]} 28... Na4
{[%clk 0:01:46.1]} 29. Rg1 {[%clk 0:00:20.2]} 29... Kc7 {[%clk 0:01:44.2]} 30.
Rh7 {[%clk 0:00:18.6]} 30... Rxf4 {[%clk 0:01:39.6]} 31. Kc1 {[%clk 0:00:15.1]}
31... Re4 {[%clk 0:01:35.8]} 32. Rgg7 {[%clk 0:00:15.1]} 32... Nb6 {[%clk
0:01:34.9]} 33. Kb2 {[%clk 0:00:12.3]} 33... Rxe5 {[%clk 0:01:34.4]} 34. Re7
{[%clk 0:00:11.4]} 34... Re4 {[%clk 0:01:33.5]} 35. Rhf7 {[%clk 0:00:11.3]}
35... Kd6 {[%clk 0:01:33]} 36. Rh7 {[%clk 0:00:09.7]} 36... f4 {[%clk
0:01:32.2]} 37. Ref7 {[%clk 0:00:09.8]} 37... Bc6 {[%clk 0:01:29.5]} 38. Ra7
{[%clk 0:00:08.4]} 38... a5 {[%clk 0:01:28.1]} 39. Ra6 {[%clk 0:00:07.7]} 39...
Nc4+ {[%clk 0:01:24.2]} 40. Kb3 {[%clk 0:00:08.2]} 40... f3 {[%clk 0:01:20.9]}
41. Rf7 {[%clk 0:00:07.2]} 41... Ne5 {[%clk 0:01:19.5]} 42. Rf8 {[%clk
0:00:07.1]} 42... a4+ {[%clk 0:01:20.1]} 43. Kb2 {[%clk 0:00:06.4]} 43... Re2
{[%clk 0:01:20.4]} 44. c4 {[%clk 0:00:04]} 44... b4 {[%clk 0:01:12.3]} 45. c5+
{[%clk 0:00:02.3]} 45... Kxc5 {[%clk 0:01:10.9]} 46. Rc8 {[%clk 0:00:03]} 46...
Nc4+ {[%clk 0:01:09.3]} 0-1

[Event "Late-Titled-Tuesday-Blitz-April-30-2024"]
[Site "Chess.com"]
[Date "2024.04.30"]
[Round "7"]
[White "Oleg_Papayan"]
[Black "Nemsko"]
[Result "1-0"]
[WhiteElo "2640"]
[BlackElo "2452"]
[TimeControl "180+1"]
[EndTime "15:17:12 PDT"]
[Termination "Oleg_Papayan won by resignation"]

1. e4 {[%clk 0:02:57.9]} 1... c6 {[%clk 0:02:59.5]} 2. Nf3 {[%clk 0:02:57.7]}
2... g6 {[%clk 0:02:47.6]} 3. Nc3 {[%clk 0:02:58.6]} 3... Bg7 {[%clk 0:02:48]}
4. d4 {[%clk 0:02:56.6]} 4... d6 {[%clk 0:02:43.8]} 5. Be3 {[%clk 0:02:51.8]}
5... Nd7 {[%clk 0:02:39.4]} 6. Qd2 {[%clk 0:02:51.1]} 6... Ngf6 {[%clk
0:02:34.6]} 7. h4 {[%clk 0:02:41.6]} 7... Ng4 {[%clk 0:02:25.9]} 8. Bg5 {[%clk
0:02:38.3]} 8... h6 {[%clk 0:02:24.3]} 9. Bf4 {[%clk 0:02:37.8]} 9... e5 {[%clk
0:02:20.3]} 10. Bg3 {[%clk 0:02:36.6]} 10... Qb6 {[%clk 0:01:46.8]} 11. O-O-O
{[%clk 0:02:30.1]} 11... O-O {[%clk 0:01:31.3]} 12. h5 {[%clk 0:02:29]} 12... g5
{[%clk 0:01:31.7]} 13. dxe5 {[%clk 0:02:28.2]} 13... dxe5 {[%clk 0:01:25.9]} 14.
Nxg5 {[%clk 0:02:18.5]} 14... hxg5 {[%clk 0:01:25.1]} 15. Qxg5 {[%clk
0:02:19.4]} 15... Nh6 {[%clk 0:01:15.1]} 16. Bc4 {[%clk 0:01:29.8]} 16... Qc5
{[%clk 0:00:50.5]} 17. Bb3 {[%clk 0:01:20.9]} 17... Nb6 {[%clk 0:00:34.8]} 18.
Nd5 {[%clk 0:00:43.9]} 18... cxd5 {[%clk 0:00:32.5]} 19. Rxd5 {[%clk 0:00:22.6]}
19... Nxd5 {[%clk 0:00:21.3]} 20. Bxd5 {[%clk 0:00:23.5]} 20... Qc7 {[%clk
0:00:17.7]} 21. f4 {[%clk 0:00:11.2]} 21... Be6 {[%clk 0:00:17.1]} 22. f5 {[%clk
0:00:11.1]} 22... Bxd5 {[%clk 0:00:17.3]} 23. f6 {[%clk 0:00:11.7]} 23... Qxc2+
{[%clk 0:00:04.2]} 24. Kxc2 {[%clk 0:00:12.6]} 24... Bxe4+ {[%clk 0:00:05]} 25.
Kb3 {[%clk 0:00:13.2]} 25... Bg6 {[%clk 0:00:03.1]} 26. hxg6 {[%clk 0:00:08.3]}
26... fxg6 {[%clk 0:00:03.4]} 27. fxg7 {[%clk 0:00:08.4]} 1-0

[Event "Late-Titled-Tuesday-Blitz-April-30-2024"]
[Site "Chess.com"]
[Date "2024.04.30"]
[Round "7"]
[White "Mischuk_D"]
[Black "dropstoneDP"]
[Result "1/2-1/2"]
[WhiteElo "2823"]
[BlackElo "2997"]
[TimeControl "180+1"]
[EndTime "15:17:15 PDT"]
[Termination "Game drawn by repetition"]

1. d4 {[%clk 0:03:00.9]} 1... d5 {[%clk 0:02:55.7]} 2. c4 {[%clk 0:03:00.3]}
2... dxc4 {[%clk 0:02:55.9]} 3. Nf3 {[%clk 0:02:59.3]} 3... Nf6 {[%clk
0:02:55.6]} 4. e3 {[%clk 0:02:59.4]} 4... e6 {[%clk 0:02:55.9]} 5. Bxc4 {[%clk
0:02:57.6]} 5... a6 {[%clk 0:02:56.3]} 6. a4 {[%clk 0:02:57.3]} 6... c5 {[%clk
0:02:54.9]} 7. O-O {[%clk 0:02:55.1]} 7... cxd4 {[%clk 0:02:55.4]} 8. exd4
{[%clk 0:02:49.7]} 8... Nc6 {[%clk 0:02:55.7]} 9. Nc3 {[%clk 0:02:45.4]} 9...
Be7 {[%clk 0:02:56.2]} 10. d5 {[%clk 0:02:28.2]} 10... exd5 {[%clk 0:02:57.1]}
11. Nxd5 {[%clk 0:02:28.6]} 11... Nxd5 {[%clk 0:02:57.3]} 12. Bxd5 {[%clk
0:02:25.5]} 12... O-O {[%clk 0:02:57.8]} 13. Bxc6 {[%clk 0:02:24.3]} 13... bxc6
{[%clk 0:02:57.1]} 14. Bf4 {[%clk 0:02:22.7]} 14... Bf6 {[%clk 0:02:50.3]} 15.
Be5 {[%clk 0:02:21]} 15... Bg4 {[%clk 0:02:42.3]} 16. Qxd8 {[%clk 0:02:02.2]}
16... Rfxd8 {[%clk 0:02:43.2]} 17. Bxf6 {[%clk 0:02:01.6]} 17... gxf6 {[%clk
0:02:44.1]} 18. Rac1 {[%clk 0:01:57.3]} 18... Bxf3 {[%clk 0:02:27.8]} 19. gxf3
{[%clk 0:01:56.7]} 19... Rd6 {[%clk 0:02:28.3]} 20. Rc4 {[%clk 0:01:56.4]} 20...
a5 {[%clk 0:02:28.3]} 21. Rfc1 {[%clk 0:01:56.2]} 21... Rb8 {[%clk 0:02:23.9]}
22. Rxc6 {[%clk 0:01:56.3]} 22... Rxc6 {[%clk 0:02:23.4]} 23. Rxc6 {[%clk
0:01:56.6]} 23... Rb4 {[%clk 0:02:22.4]} 24. b3 {[%clk 0:01:50.7]} 24... Rxb3
{[%clk 0:02:22.3]} 25. Rc5 {[%clk 0:01:51]} 25... Rxf3 {[%clk 0:02:22.2]} 26.
Rxa5 {[%clk 0:01:51.1]} 26... Ra3 {[%clk 0:02:22.7]} 27. Kg2 {[%clk 0:01:48.1]}
27... Kg7 {[%clk 0:02:23.2]} 28. f3 {[%clk 0:01:48.1]} 28... f5 {[%clk
0:02:22.8]} 29. Kg3 {[%clk 0:01:48.2]} 29... Kg6 {[%clk 0:02:20.5]} 30. h4
{[%clk 0:01:47.7]} 30... h5 {[%clk 0:02:17.1]} 31. Kf4 {[%clk 0:01:47.6]} 31...
f6 {[%clk 0:02:14.9]} 32. Ra8 {[%clk 0:01:46.6]} 32... Rb3 {[%clk 0:02:15.2]}
33. a5 {[%clk 0:01:45.8]} 33... Rb4+ {[%clk 0:02:15.7]} 34. Kg3 {[%clk
0:01:46.2]} 34... f4+ {[%clk 0:02:15.5]} 35. Kf2 {[%clk 0:01:44.2]} 35... Rb2+
{[%clk 0:02:15.5]} 36. Ke1 {[%clk 0:01:44]} 36... Rb3 {[%clk 0:01:10.8]} 37. a6
{[%clk 0:01:38.7]} 37... Ra3 {[%clk 0:01:06.5]} 38. a7 {[%clk 0:01:36.4]} 38...
Kg7 {[%clk 0:00:51.1]} 39. Kd2 {[%clk 0:01:33.4]} 39... Ra5 {[%clk 0:00:47.3]}
40. Kd3 {[%clk 0:01:32.1]} 40... Ra4 {[%clk 0:00:45.9]} 41. Kc3 {[%clk 0:01:32]}
41... Ra1 {[%clk 0:00:41.8]} 42. Kb4 {[%clk 0:01:29.8]} 42... Ra2 {[%clk
0:00:41.2]} 43. Kc5 {[%clk 0:01:29.4]} 43... Ra1 {[%clk 0:00:40]} 44. Kc6 {[%clk
0:01:26.7]} 44... Ra2 {[%clk 0:00:39.1]} 45. Kd6 {[%clk 0:01:24.7]} 45... Ra1
{[%clk 0:00:37.9]} 46. Ke6 {[%clk 0:01:24.8]} 46... Ra5 {[%clk 0:00:37.8]} 47.
Kd6 {[%clk 0:00:47.5]} 47... Ra1 {[%clk 0:00:31.2]} 48. Kd5 {[%clk 0:00:47.2]}
48... Ra4 {[%clk 0:00:31.1]} 49. Ke6 {[%clk 0:00:45.6]} 49... Ra5 {[%clk
0:00:31]} 50. Kd6 {[%clk 0:00:38.1]} 50... Ra1 {[%clk 0:00:30.7]} 1/2-1/2

[Event "Late-Titled-Tuesday-Blitz-April-30-2024"]
[Site "Chess.com"]
[Date "2024.04.30"]
[Round "7"]
[White "ameetghasi100"]
[Black "Statham_01"]
[Result "0-1"]
[WhiteElo "2800"]
[BlackElo "2620"]
[TimeControl "180+1"]
[EndTime "15:17:16 PDT"]
[Termination "Statham_01 won by checkmate"]

1. b3 {[%clk 0:03:00.9]} 1... e5 {[%clk 0:02:59.9]} 2. Bb2 {[%clk 0:03:01.8]}
2... Nc6 {[%clk 0:03:00.6]} 3. e3 {[%clk 0:03:02]} 3... d5 {[%clk 0:03:01.3]} 4.
Bb5 {[%clk 0:03:01.2]} 4... Ne7 {[%clk 0:03:01.7]} 5. Bxe5 {[%clk 0:02:59.2]}
5... a6 {[%clk 0:03:02.3]} 6. Bxc6+ {[%clk 0:02:59.2]} 6... Nxc6 {[%clk
0:03:03.2]} 7. Bg3 {[%clk 0:02:59.7]} 7... h5 {[%clk 0:03:03.5]} 8. h4 {[%clk
0:03:00]} 8... Bd6 {[%clk 0:03:04.2]} 9. Ne2 {[%clk 0:02:59.2]} 9... Bg4 {[%clk
0:03:01.9]} 10. f3 {[%clk 0:02:55.3]} 10... Bxg3+ {[%clk 0:02:59.8]} 11. Nxg3
{[%clk 0:02:56.2]} 11... Qd6 {[%clk 0:02:59.8]} 12. Kf2 {[%clk 0:02:55.1]} 12...
O-O-O {[%clk 0:02:54.8]} 13. d4 {[%clk 0:02:47]} 13... Be6 {[%clk 0:02:47]} 14.
Nd2 {[%clk 0:02:32.4]} 14... f6 {[%clk 0:02:37.3]} 15. Ne2 {[%clk 0:02:27.2]}
15... g5 {[%clk 0:02:34]} 16. c4 {[%clk 0:02:27.7]} 16... Rhg8 {[%clk
0:02:20.8]} 17. hxg5 {[%clk 0:02:16.9]} 17... Rxg5 {[%clk 0:02:00.9]} 18. c5
{[%clk 0:02:16.5]} 18... Qe7 {[%clk 0:01:51.3]} 19. Nf4 {[%clk 0:02:16.8]} 19...
Bf5 {[%clk 0:01:41.4]} 20. Nf1 {[%clk 0:02:02]} 20... Rdg8 {[%clk 0:01:36]} 21.
g3 {[%clk 0:01:57.3]} 21... Qg7 {[%clk 0:01:14.6]} 22. Rxh5 {[%clk 0:01:24.8]}
22... Nb4 {[%clk 0:00:46.8]} 23. g4 {[%clk 0:01:01.6]} 23... Bxg4 {[%clk
0:00:22.2]} 24. fxg4 {[%clk 0:00:59.3]} 24... Rxg4 {[%clk 0:00:22.8]} 25. Qf3
{[%clk 0:00:56.1]} 25... Rxf4 {[%clk 0:00:17.9]} 26. exf4 {[%clk 0:00:39.5]}
26... Qg1+ {[%clk 0:00:17.8]} 27. Ke2 {[%clk 0:00:25.6]} 27... Rg2+ {[%clk
0:00:15.9]} 28. Kd1 {[%clk 0:00:17.6]} 28... Qxd4+ {[%clk 0:00:14.1]} 29. Ke1
{[%clk 0:00:10.9]} 29... Nc2# {[%clk 0:00:11.7]} 0-1